fUSD/lending_fUSD_20260429
["ID","MTS","AMOUNT","RATE_DAILY","PERIOD"]
[421317043,1777420242731,-672.44846982,0.00012,2]
[421317044,1777420242790,-531504.85237355,0.00012,2]
[421317051,1777420245985,-416.0,0.00011279,2]
[421317052,1777420245994,-29.5,0.00012,2]
[421317053,1777420246039,-31068.10752852,0.00012,2]
[421317054,1777420246050,-1037.32092717,0.00012,2]
[421317055,1777420246062,-1235.34021761,0.00012,2]
[421317056,1777420246146,-1823.9462,0.00012,2]
[421317061,1777420567572,150.0,0.00014697,30]
[421317062,1777420647507,150.0,0.00014959,30]
[421317072,1777420874934,150.0,0.00015086,30]
[421317087,1777421431627,-150.0,9.567e-05,2]
[421317088,1777421431637,-150.0,9.567e-05,2]
[421317089,1777421431647,-150.0,9.567e-05,2]
[421317090,1777421431657,-150.0,9.567e-05,2]
[421317091,1777421431667,-150.0,9.567e-05,2]
[421317092,1777421431676,-150.0,9.567e-05,2]
[421317093,1777421431688,-150.0,9.744e-05,2]
[421317094,1777421431697,-150.0,9.921e-05,2]
[421317095,1777421431707,-300.0,9.999e-05,2]
[421317096,1777421431717,-300.0,9.999e-05,2]
[421317097,1777421431727,-1519.58059293,0.0001,2]
[421317098,1777421431938,-2111.78030549,0.0001,2]
[421317121,1777421437732,-39461.3118592,0.0001,2]
[421317122,1777421437743,-150.0,0.00010099,2]
[421317123,1777421437752,-150.0,0.00010099,2]
[421317124,1777421437762,-262.15419696,0.000101,2]
[421317125,1777421437772,-1233.39212599,0.00010204,2]
[421317126,1777421437782,-150.0,0.00010276,2]
[421317127,1777421437791,-150.0,0.00010453,2]
[421317128,1777421437801,-9999.99,0.00010475,2]
[421317129,1777421437811,-19999.99,0.00010475,2]
[421317130,1777421437821,-384.22620767,0.00010524,2]
[421317131,1777421437831,-250.0,0.00010524,2]
[421317132,1777421437841,-150.0,0.0001054,2]
[421317133,1777421437851,-5000.0,0.00010541,2]
[421317134,1777421437862,-150.0,0.0001063,2]
[421317135,1777421437872,-150.0,0.0001063,2]
[421317136,1777421437881,-150.0,0.0001063,2]
[421317137,1777421437891,-150.0,0.0001063,2]
[421317138,1777421437901,-250.0,0.0001064,2]
[421317139,1777421437912,-26664.0951,0.00010641,2]
[421317140,1777421437922,-154797.36712236,0.00010641,2]
[421317141,1777421437934,-195141.64589651,0.00010641,2]
[421317142,1777421437946,-132305.85306251,0.00010641,2]
[421317143,1777421437963,-39132.88238231,0.00010641,2]
[421317144,1777421437975,-1496.13372,0.00010641,2]
[421317145,1777421437990,-301.76454383,0.00010641,2]
[421317281,1777421439840,-836.81918782,0.00010641,2]
[421317285,1777421440211,-5000.0,0.00010541,2]
[421317286,1777421440221,-5000.176696,0.00010641,2]
[421317290,1777421442685,-292.15410579,0.00010641,2]
[421317301,1777421445832,-11063.5453935,0.00010641,2]
[421317302,1777421445959,-50070.24729692,0.00010641,2]
[421317303,1777421445977,-662786.44197165,0.00010641,2]
[421317304,1777421445991,-1146.25850689,0.00010641,2]
[421317305,1777421446002,-445.18197327,0.00010641,2]
[421317318,1777422631868,-150.0,9.616e-05,2]
[421317319,1777422631879,-165.71068181,9.616e-05,2]
[421317320,1777422631889,-150.0,9.616e-05,2]
[421317321,1777422631899,-150.0,9.616e-05,2]
[421317322,1777422631910,-176.68507966,9.616e-05,2]
[421317323,1777422631920,-150.0,9.616e-05,2]
[421317324,1777422631936,-150.0,9.616e-05,2]
[421317325,1777422631947,-50.99715419,9.616e-05,2]
[421317326,1777422632029,-99.00284582,9.616e-05,2]
[421317327,1777422632039,-277.35715418,9.698e-05,2]
[421317328,1777422632085,-22.64284582,9.698e-05,2]
[421317329,1777422632095,-300.0,9.698e-05,2]
[421317330,1777422632106,-300.0,9.698e-05,2]
[421317331,1777422632117,-660.94945769,9.699e-05,2]
[421317332,1777422632129,-439.05054231,9.699e-05,2]
[421317333,1777422632139,-267.90417217,9.702e-05,2]
[421317349,1777422638317,-1287.1,9.702e-05,2]
[421317407,1777422640372,-542.688,9.702e-05,2]
[421317408,1777422640385,-982.72282783,9.702e-05,2]
[421317409,1777422640396,-200.388,9.702e-05,2]
[421317410,1777422640407,-11078.03328065,9.799e-05,2]
[421317411,1777422640427,-883.15138334,9.799e-05,2]
[421317412,1777422640484,-492.65507974,9.799e-05,2]
[421317413,1777422640595,-1219.17117707,9.799e-05,2]
[421317414,1777422640652,-422.89223244,9.799e-05,2]
[421317415,1777422640669,-2371.50323183,9.799e-05,2]
[421317416,1777422640682,-616.0,9.799e-05,2]
[421317431,1777422643128,-366737.27055991,9.799e-05,2]
[421317432,1777422643142,-38752.48642795,9.799e-05,2]
[421317433,1777422643286,-987.61314542,9.799e-05,2]
[421317458,1777422646561,-4387.97121939,9.799e-05,2]
[421317468,1777423831950,-183.03,8.735e-05,2]
[421317469,1777423831960,-150.0,8.8e-05,2]
[421317470,1777423831970,-150.0,8.803e-05,2]
[421317471,1777423831980,-150.0,8.803e-05,2]
[421317472,1777423831990,-150.0,8.803e-05,2]
[421317473,1777423831999,-40.611,8.803e-05,2]
[421317474,1777423832055,-109.389,8.803e-05,2]
[421317475,1777423832064,-150.0,8.803e-05,2]
[421317476,1777423832074,-150.0,8.803e-05,2]
[421317477,1777423832084,-150.0,8.803e-05,2]
[421317478,1777423832094,-150.0,8.86e-05,2]
[421317479,1777423832104,-154.13,8.9e-05,2]
[421317480,1777423832114,-1200.0,8.917e-05,2]
[421317481,1777423832124,-150.0,8.918e-05,2]
[421317482,1777423832135,-244.04,8.938e-05,2]
[421317483,1777423832145,-150.0,8.942e-05,2]
[421317484,1777423832155,-150.0,8.975e-05,2]
[421317485,1777423832164,-150.0,8.998e-05,2]
[421317486,1777423832174,-150.0,9e-05,2]
[421317487,1777423832183,-150.0,9.033e-05,2]
[421317488,1777423832194,-162.23,9.04e-05,2]
[421317489,1777423832204,-150.0,9.082e-05,2]
[421317490,1777423832214,-363.03904643,9.082e-05,2]
[421317492,1777423832224,-150.0,9.09e-05,2]
[421317494,1777423832234,-300.0,9.128e-05,2]
[421317495,1777423832244,-150.0,9.129e-05,2]
[421317496,1777423832254,-150.0,9.129e-05,2]
[421317497,1777423832265,-305.06,9.141e-05,2]
[421317499,1777423832275,-5449.859267,9.148e-05,2]
[421317502,1777423832285,-150.0,9.148e-05,2]
[421317504,1777423832295,-150.0,9.194e-05,2]
[421317506,1777423832305,-150.0,9.205e-05,2]
[421317508,1777423832314,-150.0,9.222e-05,2]
[421317510,1777423832324,-150.0,9.263e-05,2]
[421317512,1777423832334,-150.0,9.278e-05,2]
[421317514,1777423832344,-288.32213193,9.278e-05,2]
[421317516,1777423832353,-150.0,9.278e-05,2]
[421317517,1777423832363,-150.0,9.278e-05,2]
[421317518,1777423832373,-150.0,9.278e-05,2]
[421317520,1777423832383,-150.0,9.278e-05,2]
[421317522,1777423832393,-176.27925153,9.278e-05,2]
[421317524,1777423832403,-150.0,9.278e-05,2]
[421317526,1777423832414,-500.0,9.278e-05,2]
[421317528,1777423832424,-500.0,9.278e-05,2]
[421317530,1777423832435,-444.67343688,9.278e-05,2]
[421317532,1777423832444,-500.0,9.278e-05,2]
[421317534,1777423832455,-500.0,9.278e-05,2]
[421317536,1777423832465,-500.0,9.278e-05,2]
[421317538,1777423832474,-385.31490086,9.278e-05,2]
[421317540,1777423832484,-150.0,9.278e-05,2]
[421317541,1777423832494,-187.29416377,9.278e-05,2]
[421317543,1777423832503,-150.0,9.321e-05,2]
[421317545,1777423832513,-150.0,9.333e-05,2]
[421317547,1777423832523,-500.0,9.333e-05,2]
[421317549,1777423832534,-366.07,9.344e-05,2]
[421317553,1777423832558,-150.0,9.362e-05,2]
[421317555,1777423832570,-150.0,9.378e-05,2]
[421317557,1777423832581,-150.0,9.39e-05,2]
[421317558,1777423832591,-21994.67447514,9.414e-05,2]
[421317559,1777423832602,-250.0,9.414e-05,2]
[421317560,1777423832613,-500.0,9.423e-05,2]
[421317561,1777423832623,-500.0,9.423e-05,2]
[421317562,1777423832634,-500.0,9.423e-05,2]
[421317563,1777423832644,-655839.13282407,9.424e-05,2]
[421317564,1777423832659,-52691.74063424,9.424e-05,2]
[421317565,1777423832672,-229057.82913011,9.424e-05,2]
[421317566,1777423832684,-51453.70651685,9.424e-05,2]
[421317567,1777423832696,-1254.41808677,9.424e-05,2]
[421317570,1777423838391,-500.0,9.123e-05,2]
[421317571,1777423838405,-500.0,9.123e-05,2]
[421317572,1777423838420,-3730.75089867,9.424e-05,2]
[421317573,1777423838438,-500.0,9.424e-05,2]
[421317574,1777423838459,-336.64042432,9.424e-05,2]
[421317575,1777423838478,-1466.25518156,9.424e-05,2]
[421317618,1777423840540,-2935.0,9.424e-05,2]
[421317619,1777423840646,-1933.47872742,9.424e-05,2]
[421317629,1777423843161,-413.63169251,9.424e-05,2]
[421317630,1777423843176,-5315.1,9.424e-05,2]
[421317631,1777423843191,-261.98000005,9.424e-05,2]
[421317632,1777423843213,-388.81814311,9.424e-05,2]
[421317633,1777423843227,-681.76212011,9.424e-05,2]
[421317634,1777423843374,-4069.77402337,9.424e-05,2]
[421317635,1777423843389,-1250.10506771,9.424e-05,2]
[421317636,1777423843427,-519.45202042,9.424e-05,2]
[421317637,1777423843443,-254436.68356305,9.424e-05,2]
[421317638,1777423843482,-3102.52633448,9.424e-05,2]
[421317639,1777423843497,-5733.99841523,9.424e-05,2]
[421317640,1777423843511,-6253.52106598,9.424e-05,2]
[421317641,1777423843527,-1203.55824115,9.424e-05,2]
[421317643,1777423843542,-35409.74475922,9.424e-05,2]
[421317648,1777423846768,-1179760.3921296,9.424e-05,2]
[421317649,1777423846780,-150.0,9.434e-05,2]
[421317650,1777423846792,-150.0,9.436e-05,2]
[421317651,1777423846804,-150.0,9.455e-05,2]
[421317652,1777423846817,-150.0,9.455e-05,2]
[421317653,1777423846828,-150.0,9.493e-05,2]
[421317654,1777423846841,-150.0,9.501e-05,2]
[421317655,1777423846852,-2539.2123919,9.508e-05,2]
[421317656,1777423846865,-500.0,9.516e-05,2]
[421317657,1777423846877,-556.0,9.524e-05,2]
[421317658,1777423846889,-556.0,9.524e-05,2]
[421317659,1777423846900,-556.0,9.524e-05,2]
[421317660,1777423846912,-556.0,9.524e-05,2]
[421317661,1777423846924,-556.0,9.524e-05,2]
[421317662,1777423846935,-556.0,9.524e-05,2]
[421317663,1777423846947,-556.0,9.524e-05,2]
[421317664,1777423846958,-556.0,9.524e-05,2]
[421317665,1777423846970,-556.0,9.524e-05,2]
[421317666,1777423846982,-556.0,9.524e-05,2]
[421317667,1777423846994,-556.0,9.524e-05,2]
[421317668,1777423847005,-556.0,9.524e-05,2]
[421317669,1777423847016,-556.0,9.524e-05,2]
[421317670,1777423847028,-556.0,9.524e-05,2]
[421317671,1777423847039,-556.0,9.524e-05,2]
[421317672,1777423847050,-556.0,9.524e-05,2]
[421317673,1777423847062,-556.0,9.524e-05,2]
[421317674,1777423847074,-556.0,9.524e-05,2]
[421317675,1777423847087,-556.0,9.524e-05,2]
[421317677,1777423847098,-556.0,9.524e-05,2]
[421317679,1777423847110,-556.0,9.524e-05,2]
[421317681,1777423847121,-556.0,9.524e-05,2]
[421317683,1777423847132,-556.0,9.524e-05,2]
[421317685,1777423847144,-564.23871379,9.524e-05,2]
[421317688,1777423847156,-427.08,9.547e-05,2]
[421317690,1777423847167,-150.0,9.551e-05,2]
[421317692,1777423847178,-150.0,9.585e-05,2]
[421317694,1777423847189,-1040.5925,9.599e-05,2]
[421317696,1777423847201,-33096.7482,9.599e-05,2]
[421317699,1777423847213,-2500.0,9.599e-05,2]
[421317701,1777423847225,-500.0,9.607e-05,2]
[421317703,1777423847235,-150.0,9.608e-05,2]
[421317705,1777423847247,-193.0,9.609e-05,2]
[421317707,1777423847259,-2879.117,9.609e-05,2]
[421317709,1777423847270,-192.041,9.609e-05,2]
[421317711,1777423847281,-1234.34054213,9.633e-05,2]
[421317713,1777423847293,-150.0,9.641e-05,2]
[421317716,1777423847304,-201.97,9.651e-05,2]
[421317718,1777423847315,-150.0,9.666e-05,2]
[421317720,1777423847327,-150.0,9.667e-05,2]
[421317722,1777423847338,-500.0,9.673e-05,2]
[421317724,1777423847350,-500.0,9.673e-05,2]
[421317726,1777423847361,-500.0,9.673e-05,2]
[421317728,1777423847374,-500.0,9.673e-05,2]
[421317729,1777423847387,-500.21459105,9.673e-05,2]
[421317730,1777423847399,-265.95504776,9.673e-05,2]
[421317731,1777423847411,-500.0,9.673e-05,2]
[421317733,1777423847423,-500.0,9.673e-05,2]
[421317735,1777423847434,-411.28244024,9.673e-05,2]
[421317737,1777423847446,-500.0,9.673e-05,2]
[421317740,1777423847458,-500.0,9.698e-05,2]
[421317742,1777423847470,-500.0,9.698e-05,2]
[421317744,1777423847482,-500.0,9.698e-05,2]
[421317746,1777423847493,-500.0,9.698e-05,2]
[421317748,1777423847505,-500.0,9.698e-05,2]
[421317751,1777423847517,-500.0,9.698e-05,2]
[421317753,1777423847528,-500.0,9.698e-05,2]
[421317755,1777423847539,-500.0,9.698e-05,2]
[421317757,1777423847551,-500.0,9.698e-05,2]
[421317759,1777423847563,-500.0,9.698e-05,2]
[421317761,1777423847575,-500.0,9.698e-05,2]
[421317763,1777423847586,-500.0,9.698e-05,2]
[421317765,1777423847598,-500.0,9.698e-05,2]
[421317768,1777423847610,-500.0,9.698e-05,2]
[421317770,1777423847621,-500.0,9.698e-05,2]
[421317772,1777423847633,-500.0,9.698e-05,2]
[421317774,1777423847643,-500.0,9.698e-05,2]
[421317826,1777423848146,-500.0,9.698e-05,2]
[421317830,1777423848182,-500.0,9.698e-05,2]
[421317833,1777423848198,-500.0,9.698e-05,2]
[421317835,1777423848208,-500.0,9.698e-05,2]
[421317837,1777423848218,-500.0,9.698e-05,2]
[421317839,1777423848227,-500.0,9.698e-05,2]
[421317840,1777423848237,-500.0,9.698e-05,2]
[421317842,1777423848247,-500.0,9.698e-05,2]
[421317845,1777423848257,-500.0,9.698e-05,2]
[421317846,1777423848267,-500.0,9.698e-05,2]
[421317849,1777423848276,-500.0,9.698e-05,2]
[421317850,1777423848287,-500.0,9.698e-05,2]
[421317853,1777423848297,-168.80005536,9.698e-05,2]
[421317854,1777423848307,-500.0,9.698e-05,2]
[421317856,1777423848318,-500.0,9.698e-05,2]
[421317859,1777423848328,-500.0,9.698e-05,2]
[421317860,1777423848338,-500.0,9.698e-05,2]
[421317863,1777423848348,-500.0,9.698e-05,2]
[421317865,1777423848359,-500.0,9.698e-05,2]
[421317866,1777423848369,-500.0,9.698e-05,2]
[421317869,1777423848379,-500.0,9.698e-05,2]
[421317871,1777423848389,-500.0,9.698e-05,2]
[421317873,1777423848398,-500.0,9.698e-05,2]
[421317875,1777423848408,-500.0,9.698e-05,2]
[421317876,1777423848418,-500.0,9.698e-05,2]
[421317879,1777423848429,-500.0,9.698e-05,2]
[421317881,1777423848441,-500.0,9.698e-05,2]
[421317883,1777423848451,-500.0,9.698e-05,2]
[421317885,1777423848461,-500.0,9.698e-05,2]
[421317887,1777423848472,-500.0,9.698e-05,2]
[421317889,1777423848482,-500.0,9.698e-05,2]
[421317891,1777423848491,-500.0,9.698e-05,2]
[421317893,1777423848501,-214.17679047,9.698e-05,2]
[421317895,1777423848510,-339.47586172,9.698e-05,2]
[421317897,1777423848520,-500.29224576,9.698e-05,2]
[421317898,1777423848531,-544.46,9.698e-05,2]
[421317899,1777423848541,-3779.132,9.699e-05,2]
[421317900,1777423848551,-5000.0,9.699e-05,2]
[421317901,1777423848560,-584934.884,9.699e-05,2]
[421317902,1777423848571,-176.22671612,9.723e-05,2]
[421317903,1777423848581,-150.0,9.723e-05,2]
[421317904,1777423848591,-324.48,9.75e-05,2]
[421317905,1777423848601,-671.16,9.75e-05,2]
[421317906,1777423848611,-13105.829995,9.772e-05,2]
[421317907,1777423848621,-470.71593278,9.773e-05,2]
[421317908,1777423848631,-150.0,9.781e-05,2]
[421317909,1777423848640,-150.0,9.781e-05,2]
[421317910,1777423848651,-273.641,9.781e-05,2]
[421317911,1777423848662,-150.0,9.781e-05,2]
[421317912,1777423848672,-150.0,9.781e-05,2]
[421317913,1777423848682,-150.0,9.781e-05,2]
[421317914,1777423848692,-151.0,9.796e-05,2]
[421317915,1777423848701,-151.0,9.796e-05,2]
[421317916,1777423848711,-1093.85407049,9.798e-05,3]
[421317917,1777423848720,-1095.45000761,9.798e-05,3]
[421317918,1777423848730,-452.0,9.799e-05,3]
[421317919,1777423848740,-160.0,9.799e-05,3]
[421317920,1777423848750,-200.0,9.8e-05,2]
[421317921,1777423848760,-200.0,9.8e-05,2]
[421317922,1777423848770,-1680.0,9.808e-05,2]
[421317923,1777423848779,-500.0,9.881e-05,2]
[421317924,1777423848789,-544.46,9.972e-05,2]
[421317925,1777423848799,-464.45002703,0.0001,2]
[421317926,1777423848808,-1099.67596667,0.0001,2]
[421317927,1777423848818,-150.39931836,0.0001,2]
[421317928,1777423848828,-150.0,0.0001,2]
[421317929,1777423848838,-200.0,0.0001,2]
[421317930,1777423848848,-500.0,0.0001,2]
[421317931,1777423848857,-151.0,0.0001,2]
[421317932,1777423848867,-500.0,0.0001,2]
[421317933,1777423848877,-151.0,0.0001,2]
[421317934,1777423848886,-500.0,0.0001,2]
[421317935,1777423848896,-151.0,0.0001,2]
[421317936,1777423848905,-500.0,0.0001,2]
[421317937,1777423848914,-151.0,0.0001,2]
[421317938,1777423848924,-500.0,0.0001,2]
[421317939,1777423848934,-151.0,0.0001,2]
[421317940,1777423848943,-151.0,0.0001,2]
[421317941,1777423848952,-500.0,0.0001,2]
[421317942,1777423848962,-151.0,0.0001,2]
[421317943,1777423848972,-151.0,0.0001,2]
[421317944,1777423848982,-500.0,0.0001,2]
[421317945,1777423848993,-151.0,0.0001,2]
[421317946,1777423849003,-151.0,0.0001,2]
[421317947,1777423849013,-151.0,0.0001,2]
[421317948,1777423849023,-151.0,0.0001,2]
[421317949,1777423849032,-151.0,0.0001,2]
[421317950,1777423849043,-151.0,0.0001,2]
[421317951,1777423849053,-151.0,0.0001,2]
[421317952,1777423849064,-151.0,0.0001,2]
[421317953,1777423849074,-151.0,0.0001,2]
[421317954,1777423849084,-151.0,0.0001,2]
[421317955,1777423849096,-500.0,0.0001,2]
[421317956,1777423849108,-151.0,0.0001,2]
[421317957,1777423849117,-500.0,0.0001,2]
[421317958,1777423849127,-151.0,0.0001,2]
[421317960,1777423849137,-500.0,0.0001,2]
[421317962,1777423849147,-151.0,0.0001,2]
[421317964,1777423849157,-500.0,0.0001,2]
[421317966,1777423849168,-151.0,0.0001,2]
[421317968,1777423849177,-500.0,0.0001,2]
[421317970,1777423849187,-151.0,0.0001,2]
[421317971,1777423849196,-151.0,0.0001,2]
[421317972,1777423849206,-500.0,0.0001,2]
[421317973,1777423849217,-151.0,0.0001,2]
[421317974,1777423849228,-500.0,0.0001,2]
[421317975,1777423849241,-151.0,0.0001,2]
[421317976,1777423849251,-151.0,0.0001,2]
[421317977,1777423849261,-828.97948388,0.0001,2]
[421317978,1777423849271,-200.98381043,0.0001,2]
[421317979,1777423849281,-339.0,0.0001,2]
[421317980,1777423849290,-339.0,0.0001,2]
[421317981,1777423849300,-339.84937236,0.0001,2]
[421317982,1777423849311,-152.0,0.00010038,7]
[421317983,1777423849320,-420.0,0.00010041,2]
[421317984,1777423849330,-152.0,0.00010089,7]
[421317985,1777423849340,-152.0,0.00010089,7]
[421317986,1777423849350,-500.0,0.00010155,2]
[421317987,1777423849360,-255.0,0.00010206,2]
[421317988,1777423849370,-472.61640263,0.00010221,2]
[421317989,1777423849380,-1000.0,0.00010221,2]
[421317990,1777423849390,-1010.30622654,0.00010221,2]
[421317991,1777423849399,-1073.65447908,0.00010221,2]
[421317992,1777423849409,-544.46,0.00010246,2]
[421317993,1777423849419,-5529.0,0.000104,5]
[421317994,1777423849429,-500.0,0.00010429,2]
[421317995,1777423849439,-537.61826,0.00010486,2]
[421317996,1777423849449,-203.068404,0.00010486,2]
[421317997,1777423849459,-179.206089,0.00010486,2]
[421317998,1777423849469,-4564.07934,0.00010486,2]
[421317999,1777423849479,-544.46,0.0001052,2]
[421318000,1777423849489,-200.0,0.00010548,2]
[421318001,1777423849498,-828.97948388,0.00010617,2]
[421318002,1777423849508,-200.0,0.00010641,2]
[421318003,1777423849519,-200.0,0.00010641,2]
[421318004,1777423849530,-34395.6465834,0.00010649,2]
[421318005,1777423849541,-161.0,0.0001065,2]
[421318006,1777423849552,-500.0,0.00010673,2]
[421318007,1777423849561,-500.0,0.00010673,2]
[421318008,1777423849571,-151.0,0.00010697,2]
[421318009,1777423849581,-151.0,0.00010697,2]
[421318010,1777423849591,-151.0,0.00010697,2]
[421318011,1777423849601,-247.81199177,0.00010697,2]
[421318012,1777423849611,-1093.85407049,0.00010699,3]
[421318013,1777423849621,-607295.0112144,0.000107,2]
[421318014,1777423849631,-151.0,0.000107,2]
[421318015,1777423849642,-151.0,0.000107,2]
[421318016,1777423849653,-151.0,0.000107,2]
[421318017,1777423849664,-500.0,0.000107,2]
[421318018,1777423849675,-500.0,0.000107,2]
[421318019,1777423849684,-500.0,0.000107,2]
[421318020,1777423849695,-500.0,0.000107,2]
[421318021,1777423849705,-500.0,0.000107,2]
[421318022,1777423849715,-500.0,0.000107,2]
[421318023,1777423849725,-276.911109,0.000107,2]
[421318024,1777423849734,-151.0,0.000107,2]
[421318025,1777423849744,-151.0,0.000107,2]
[421318026,1777423849755,-473.824216,0.000107,2]
[421318027,1777423849765,-473.824216,0.000107,2]
[421318028,1777423849775,-473.824216,0.000107,2]
[421318029,1777423849785,-473.824216,0.000107,2]
[421318030,1777423849796,-484.286103,0.000107,2]
[421318031,1777423849805,-484.286103,0.000107,2]
[421318032,1777423849815,-484.286103,0.000107,2]
[421318033,1777423849824,-484.286103,0.000107,2]
[421318034,1777423849835,-500.0,0.00010703,2]
[421318035,1777423849845,-296.0,0.00010713,5]
[421318036,1777423849855,-260.0,0.00010713,5]
[421318037,1777423849866,-200.0,0.00010747,2]
[421318038,1777423849876,-1500.0,0.00010768,2]
[421318039,1777423849885,-2351.0,0.00010789,2]
[421318040,1777423849895,-360.89415246,0.00010794,2]
[421318041,1777423849905,-544.47,0.00010794,2]
[421318042,1777423849915,-200.0,0.00010855,2]
[421318043,1777423849925,-3475.82026963,0.000109,2]
[421318044,1777423849936,-3475.8202696,0.000109,2]
[421318045,1777423849945,-3475.8202696,0.000109,2]
[421318046,1777423849955,-3475.8202696,0.000109,2]
[421318047,1777423849965,-3475.8202696,0.000109,2]
[421318048,1777423849975,-1334.969,0.00010954,2]
[421318049,1777423849986,-1049.0,0.00010954,2]
[421318050,1777423849996,-1266.0,0.00010954,2]
[421318051,1777423850005,-489.079,0.00010954,2]
[421318052,1777423850015,-416.0,0.00010954,2]
[421318053,1777423850025,-6035.0,0.00010954,2]
[421318054,1777423850035,-151.0,0.00010959,2]
[421318055,1777423850044,-151.0,0.00010959,2]
[421318056,1777423850054,-151.0,0.00010959,2]
[421318057,1777423850064,-151.0,0.00010959,2]
[421318058,1777423850073,-151.0,0.00010959,2]
[421318059,1777423850083,-200.0,0.00010963,2]
[421318060,1777423850092,-500.0,0.00010977,2]
[421318061,1777423850101,-299.99,0.00010989,2]
[421318062,1777423850111,-407.0,0.00011045,2]
[421318063,1777423850120,-200.0,0.00011073,2]
[421318064,1777423850130,-200.0,0.00011096,2]
[421318065,1777423850141,-15277.22709961,0.00011099,2]
[421318066,1777423850150,-15277.22709952,0.00011099,2]
[421318067,1777423850159,-15277.22709952,0.00011099,2]
[421318068,1777423850169,-15277.22709952,0.00011099,2]
[421318069,1777423850179,-15277.22709952,0.00011099,2]
[421318070,1777423850189,-15277.22709952,0.00011099,2]
[421318071,1777423850199,-156.5274994,0.00011099,2]
[421318072,1777423850210,-15277.22709952,0.00011141,2]
[421318073,1777423850220,-3125.61664329,0.00011167,2]
[421318074,1777423850244,-350.20362631,0.00011167,2]
[421318075,1777423850253,-609.205212,0.00011171,2]
[421318076,1777423850263,-500.0,0.00011221,2]
[421318077,1777423850273,-501.64017088,0.00011221,2]
[421318078,1777423850284,-433.0,0.00011226,2]
[421318079,1777423850296,-500.0,0.00011251,2]
[421318080,1777423850308,-248.72,0.00011281,2]
[421318081,1777423850318,-150.99,0.00011281,2]
[421318082,1777423850328,-9999.99,0.00011281,2]
[421318083,1777423850338,-299.99,0.00011281,2]
[421318084,1777423850347,-6810.3572409,0.00011281,2]
[421318085,1777423850362,-14293.0,0.00011281,2]
[421318086,1777423850375,-733.13076346,0.00011281,2]
[421318087,1777423850387,-387.372,0.00011281,2]
[421318088,1777423850402,-2776.12999564,0.00011281,2]
[421318089,1777423850411,-6325.49085994,0.00011305,2]
[421318090,1777423850422,-5000.0,0.00011305,2]
[421318091,1777423850433,-5000.0,0.00011305,2]
[421318092,1777423850443,-5000.0,0.00011305,2]
[421318093,1777423850453,-5000.0,0.00011305,2]
[421318094,1777423850463,-500.0,0.00011316,2]
[421318095,1777423850474,-15277.22709952,0.00011394,2]
[421318096,1777423850484,-109.1560449,0.00011394,2]
[421318097,1777423928285,8376.728832,7.945e-05,2]
[421318098,1777423928309,10000.01,7.945e-05,2]
[421318099,1777423928333,4533.658486,7.945e-05,2]
[421318100,1777423986709,429.0,7.945e-05,3]
[421318101,1777424047066,408.0,7.945e-05,3]
[421318102,1777424110765,160.0,7.945e-05,3]
[421318103,1777424110803,387.0,7.945e-05,3]
[421318104,1777424165890,368.0,7.945e-05,3]
[421318105,1777424225077,350.0,7.945e-05,3]
[421318106,1777424287010,332.0,7.945e-05,3]
[421318107,1777424345503,316.0,7.945e-05,3]
[421318108,1777424408109,300.0,7.945e-05,3]
[421318110,1777424472893,285.0,7.945e-05,3]
[421318111,1777424527250,271.0,7.945e-05,3]
[421318112,1777424580332,150.0,0.00014786,30]
[421318113,1777424586855,257.0,7.945e-05,3]
[421318114,1777424636158,5466.351514,8.112e-05,2]
[421318115,1777424636185,4533.648486,8.112e-05,2]